[Event "*** Titled Tuesday Blitz"]
[Site "Chess.com"]
[Date "2021.03.30"]
[Round "7"]
[White "Ave_Mariia"]
[Black "BJthechessgod"]
[Result "0-1"]
[WhiteElo "2483"]
[BlackElo "2336"]
[TimeControl "180+1"]
[EndTime "11:19:01 PDT"]
[Termination "BJthechessgod won on time"]

1. d4 {[%clk 0:03:00.9]} 1... Nf6 {[%clk 0:01:59.8]} 2. c4 {[%clk 0:02:58.4]}
2... e6 {[%clk 0:01:59.9]} 3. g3 {[%clk 0:02:56.9]} 3... Be7 {[%clk 0:01:59.4]}
4. Bg2 {[%clk 0:02:55.7]} 4... O-O {[%clk 0:02:00.3]} 5. Nf3 {[%clk 0:02:55.9]}
5... d5 {[%clk 0:01:59.4]} 6. O-O {[%clk 0:02:55.9]} 6... dxc4 {[%clk
0:01:59.7]} 7. Qc2 {[%clk 0:02:56.2]} 7... a6 {[%clk 0:01:59.7]} 8. a4 {[%clk
0:02:56.5]} 8... Bd7 {[%clk 0:01:59.8]} 9. Qxc4 {[%clk 0:02:56.5]} 9... Bc6
{[%clk 0:01:57.1]} 10. Bf4 {[%clk 0:02:56.7]} 10... Nbd7 {[%clk 0:01:55.8]} 11.
Nc3 {[%clk 0:02:56.5]} 11... Nb6 {[%clk 0:01:55.9]} 12. Qd3 {[%clk 0:02:55.4]}
12... Nfd5 {[%clk 0:01:53.9]} 13. a5 {[%clk 0:02:15.9]} 13... Nxf4 {[%clk
0:01:50.4]} 14. gxf4 {[%clk 0:02:16.8]} 14... Nd5 {[%clk 0:01:49.6]} 15. Nxd5
{[%clk 0:02:17]} 15... Qxd5 {[%clk 0:01:47]} 16. Rfe1 {[%clk 0:02:00.1]} 16...
Qh5 {[%clk 0:01:40.7]} 17. e4 {[%clk 0:01:54.4]} 17... Rad8 {[%clk 0:01:38.5]}
18. Qe3 {[%clk 0:01:52.4]} 18... Bf6 {[%clk 0:01:21.2]} 19. Ne5 {[%clk 0:01:51]}
19... Bb5 {[%clk 0:01:05.3]} 20. Rac1 {[%clk 0:01:46.8]} 20... c6 {[%clk
0:01:03.1]} 21. Kh1 {[%clk 0:01:31.6]} 21... Be7 {[%clk 0:00:49.3]} 22. Rg1
{[%clk 0:01:30.8]} 22... f6 {[%clk 0:00:48.3]} 23. Bf3 {[%clk 0:01:25.2]} 23...
Qe8 {[%clk 0:00:47.3]} 24. Nc4 {[%clk 0:01:22.2]} 24... Bxc4 {[%clk 0:00:46.3]}
25. Rxc4 {[%clk 0:01:22]} 25... Kh8 {[%clk 0:00:43]} 26. Be2 {[%clk 0:01:16.6]}
26... Qd7 {[%clk 0:00:37.5]} 27. Qg3 {[%clk 0:01:14.9]} 27... Bd6 {[%clk
0:00:35]} 28. e5 {[%clk 0:01:06.6]} 28... fxe5 {[%clk 0:00:33.9]} 29. fxe5
{[%clk 0:01:07.5]} 29... Bc7 {[%clk 0:00:33.3]} 30. Bf3 {[%clk 0:01:05.5]} 30...
Bxa5 {[%clk 0:00:29.8]} 31. Be4 {[%clk 0:01:03.8]} 31... Bd2 {[%clk 0:00:24.8]}
32. Qh4 {[%clk 0:00:56.7]} 32... Bh6 {[%clk 0:00:23.9]} 33. Rd1 {[%clk
0:00:39.3]} 33... Rf4 {[%clk 0:00:22.3]} 34. Qg3 {[%clk 0:00:27.1]} 34... Rxe4
{[%clk 0:00:22.5]} 35. f3 {[%clk 0:00:17.7]} 35... Re2 {[%clk 0:00:18.1]} 36.
Qg4 {[%clk 0:00:14]} 36... Rf8 {[%clk 0:00:18]} 37. Qh4 {[%clk 0:00:06.1]} 37...
Qd5 {[%clk 0:00:17.2]} 38. Rc3 {[%clk 0:00:05.4]} 38... Rxb2 {[%clk 0:00:16.8]}
39. Rf1 {[%clk 0:00:04.6]} 39... Rf4 {[%clk 0:00:13.4]} 40. Qe7 {[%clk
0:00:04.4]} 40... g6 {[%clk 0:00:10.7]} 41. Qe8+ {[%clk 0:00:04.5]} 41... Bf8
{[%clk 0:00:11.1]} 42. Rd3 {[%clk 0:00:03.2]} 42... Qc4 {[%clk 0:00:10.2]} 43.
Rfd1 {[%clk 0:00:01.8]} 43... Qc2 {[%clk 0:00:10.2]} 44. R1d2 {[%clk 0:00:01.8]}
44... Qc1+ {[%clk 0:00:10.4]} 45. Rd1 {[%clk 0:00:02.3]} 45... Qc2 {[%clk
0:00:10.7]} 46. R1d2 {[%clk 0:00:01.9]} 46... Rb1+ {[%clk 0:00:11.3]} 47. Kg2
{[%clk 0:00:01.7]} 47... Qc4 {[%clk 0:00:11.7]} 48. Kg3 {[%clk 0:00:02]} 48...
g5 {[%clk 0:00:10.3]} 49. h4 {[%clk 0:00:01.6]} 49... Rg1+ {[%clk 0:00:10.1]}
50. Kh2 {[%clk 0:00:01.7]} 50... Rf1 {[%clk 0:00:10]} 51. hxg5 {[%clk
0:00:01.9]} 51... R1xf3 {[%clk 0:00:10]} 52. Rxf3 {[%clk 0:00:01.7]} 52... Rxf3
{[%clk 0:00:10.9]} 53. Kg2 {[%clk 0:00:01.9]} 53... Qd5 {[%clk 0:00:11.2]} 54.
Rf2 {[%clk 0:00:02]} 54... Rf5+ {[%clk 0:00:09.2]} 55. Kg1 {[%clk 0:00:01.9]}
55... Qxd4 {[%clk 0:00:08.4]} 0-1

[Event "*** Titled Tuesday Blitz"]
[Site "Chess.com"]
[Date "2021.03.30"]
[Round "7"]
[White "akanga001"]
[Black "catzapto"]
[Result "0-1"]
[WhiteElo "1994"]
[BlackElo "2173"]
[TimeControl "180+1"]
[EndTime "11:19:01 PDT"]
[Termination "catzapto won on time"]

1. d4 {[%clk 0:02:59.3]} 1... Nf6 {[%clk 0:02:59.2]} 2. Nf3 {[%clk 0:02:58.7]}
2... e6 {[%clk 0:02:59.6]} 3. Bg5 {[%clk 0:02:56.8]} 3... d5 {[%clk 0:02:58.8]}
4. e3 {[%clk 0:02:57]} 4... c5 {[%clk 0:02:59.2]} 5. c3 {[%clk 0:02:54.7]} 5...
Nc6 {[%clk 0:02:59.2]} 6. Bd3 {[%clk 0:02:54]} 6... Qb6 {[%clk 0:02:58.6]} 7.
Qc1 {[%clk 0:02:48.3]} 7... Be7 {[%clk 0:02:58]} 8. Nbd2 {[%clk 0:02:47.3]} 8...
Bd7 {[%clk 0:02:54.6]} 9. O-O {[%clk 0:02:46.2]} 9... Rc8 {[%clk 0:02:54.9]} 10.
Re1 {[%clk 0:02:44]} 10... cxd4 {[%clk 0:02:55.1]} 11. exd4 {[%clk 0:02:43.3]}
11... O-O {[%clk 0:02:51.5]} 12. a4 {[%clk 0:02:40.8]} 12... a5 {[%clk
0:02:50.6]} 13. Bb5 {[%clk 0:02:38.5]} 13... h6 {[%clk 0:02:43.7]} 14. Bh4
{[%clk 0:02:35.7]} 14... Rfd8 {[%clk 0:02:29.2]} 15. Qb1 {[%clk 0:02:25.4]}
15... Na7 {[%clk 0:02:21.4]} 16. Bf1 {[%clk 0:02:16.9]} 16... Nc6 {[%clk
0:02:04.7]} 17. Bb5 {[%clk 0:02:03.2]} 17... Na7 {[%clk 0:02:02.7]} 18. Bd3
{[%clk 0:01:59.2]} 18... Qc6 {[%clk 0:01:32.1]} 19. Ne5 {[%clk 0:01:54.7]} 19...
Qc7 {[%clk 0:01:26.5]} 20. Ndf3 {[%clk 0:01:43.6]} 20... Nc6 {[%clk 0:01:22.2]}
21. Nxd7 {[%clk 0:01:33.4]} 21... Rxd7 {[%clk 0:01:21.4]} 22. Bb5 {[%clk
0:01:32.9]} 22... Rdd8 {[%clk 0:01:18.3]} 23. Bg3 {[%clk 0:01:17.8]} 23... Bd6
{[%clk 0:01:17.1]} 24. Bxd6 {[%clk 0:01:17.2]} 24... Qxd6 {[%clk 0:01:17.2]} 25.
Bxc6 {[%clk 0:01:17.3]} 25... bxc6 {[%clk 0:01:16.2]} 26. Ne5 {[%clk 0:01:17.4]}
26... Nd7 {[%clk 0:01:14.8]} 27. f4 {[%clk 0:01:15]} 27... Nxe5 {[%clk 0:01:15]}
28. fxe5 {[%clk 0:01:14.1]} 28... Qc7 {[%clk 0:01:15.3]} 29. Qd3 {[%clk
0:01:06.9]} 29... c5 {[%clk 0:01:14.8]} 30. dxc5 {[%clk 0:01:06.8]} 30... Qxc5+
{[%clk 0:01:14.4]} 31. Re3 {[%clk 0:01:06.1]} 31... d4 {[%clk 0:01:06.3]} 32.
cxd4 {[%clk 0:01:00.9]} 32... Rxd4 {[%clk 0:01:05.1]} 33. Qe2 {[%clk 0:01:00.3]}
33... Re4 {[%clk 0:00:58.5]} 34. Re1 {[%clk 0:00:54]} 34... Rxe5 {[%clk
0:00:58.6]} 35. Qf3 {[%clk 0:00:39.1]} 35... Rxe3 {[%clk 0:00:57.3]} 36. Qxe3
{[%clk 0:00:36.7]} 36... Qxe3+ {[%clk 0:00:57.3]} 37. Rxe3 {[%clk 0:00:37.6]}
37... Rc1+ {[%clk 0:00:53.1]} 38. Kf2 {[%clk 0:00:37.1]} 38... Rc2+ {[%clk
0:00:53.1]} 39. Re2 {[%clk 0:00:36.6]} 39... Rxe2+ {[%clk 0:00:46.2]} 40. Kxe2
{[%clk 0:00:37.5]} 40... Kf8 {[%clk 0:00:46.6]} 41. Kd3 {[%clk 0:00:37.9]} 41...
Ke7 {[%clk 0:00:46.8]} 42. Kc4 {[%clk 0:00:38.8]} 42... e5 {[%clk 0:00:46.3]}
43. Kb5 {[%clk 0:00:39.7]} 43... e4 {[%clk 0:00:44.7]} 44. Kc4 {[%clk
0:00:37.2]} 44... f5 {[%clk 0:00:43.6]} 45. Kd4 {[%clk 0:00:37.4]} 45... Kd6
{[%clk 0:00:43.2]} 46. g3 {[%clk 0:00:37.5]} 46... Kc6 {[%clk 0:00:37.5]} 47. h4
{[%clk 0:00:27.9]} 47... h5 {[%clk 0:00:37.4]} 48. b3 {[%clk 0:00:23.8]} 48...
Kb6 {[%clk 0:00:30.6]} 49. Kc4 {[%clk 0:00:23.7]} 49... Kc6 {[%clk 0:00:30.3]}
50. Kd4 {[%clk 0:00:23.7]} 50... Kd6 {[%clk 0:00:30.3]} 51. Kc4 {[%clk
0:00:19.3]} 51... Ke5 {[%clk 0:00:28.5]} 52. b4 {[%clk 0:00:14.4]} 52... axb4
{[%clk 0:00:28.8]} 53. a5 {[%clk 0:00:14.7]} 53... Kd6 {[%clk 0:00:29.3]} 54.
Kxb4 {[%clk 0:00:12.3]} 54... Kc6 {[%clk 0:00:29.6]} 55. Kc4 {[%clk 0:00:08.2]}
55... Kb7 {[%clk 0:00:28.9]} 56. Kd4 {[%clk 0:00:02.6]} 56... Ka6 {[%clk
0:00:29]} 57. Ke5 {[%clk 0:00:01.6]} 57... e3 {[%clk 0:00:29.1]} 0-1

[Event "*** Titled Tuesday Blitz"]
[Site "Chess.com"]
[Date "2021.03.30"]
[Round "7"]
[White "kuli4ik"]
[Black "Duhless"]
[Result "1-0"]
[WhiteElo "2871"]
[BlackElo "3035"]
[TimeControl "180+1"]
[EndTime "11:19:02 PDT"]
[Termination "kuli4ik won on time"]

1. Nf3 {[%clk 0:03:00.9]} 1... Nf6 {[%clk 0:02:57.6]} 2. g3 {[%clk 0:02:59]}
2... b6 {[%clk 0:02:57.8]} 3. Bg2 {[%clk 0:02:58.8]} 3... Bb7 {[%clk 0:02:58.7]}
4. O-O {[%clk 0:02:58.3]} 4... c5 {[%clk 0:02:58.8]} 5. c4 {[%clk 0:02:57.6]}
5... g6 {[%clk 0:02:58.1]} 6. Nc3 {[%clk 0:02:54]} 6... Bg7 {[%clk 0:02:58.1]}
7. Re1 {[%clk 0:02:54.5]} 7... O-O {[%clk 0:02:55.8]} 8. e4 {[%clk 0:02:54.2]}
8... Nc6 {[%clk 0:02:56.3]} 9. d3 {[%clk 0:02:54.2]} 9... d6 {[%clk 0:02:55.5]}
10. a3 {[%clk 0:02:52.6]} 10... Nd7 {[%clk 0:02:51.9]} 11. Rb1 {[%clk
0:02:52.1]} 11... Nd4 {[%clk 0:02:47.9]} 12. Nxd4 {[%clk 0:02:50.2]} 12... cxd4
{[%clk 0:02:47.5]} 13. Ne2 {[%clk 0:02:47.9]} 13... e5 {[%clk 0:02:45.8]} 14. g4
{[%clk 0:02:38]} 14... f5 {[%clk 0:02:39.1]} 15. gxf5 {[%clk 0:02:35.1]} 15...
gxf5 {[%clk 0:02:38.6]} 16. exf5 {[%clk 0:02:35.3]} 16... Bxg2 {[%clk
0:02:36.4]} 17. Kxg2 {[%clk 0:02:36.2]} 17... Rxf5 {[%clk 0:02:35]} 18. Ng3
{[%clk 0:02:36.4]} 18... Rf7 {[%clk 0:02:34.8]} 19. Ne4 {[%clk 0:02:31.3]} 19...
Nc5 {[%clk 0:02:23.4]} 20. b4 {[%clk 0:02:15.2]} 20... Nxe4 {[%clk 0:02:18.6]}
21. Rxe4 {[%clk 0:02:16.1]} 21... Qf6 {[%clk 0:02:18.9]} 22. Rb2 {[%clk
0:02:02.8]} 22... Raf8 {[%clk 0:02:18.6]} 23. f4 {[%clk 0:02:00.2]} 23... Bh6
{[%clk 0:01:49.2]} 24. Kh1 {[%clk 0:01:43.7]} 24... exf4 {[%clk 0:01:37.5]} 25.
Qf3 {[%clk 0:01:41.8]} 25... Kh8 {[%clk 0:01:34.4]} 26. Rg2 {[%clk 0:01:39.1]}
26... Re7 {[%clk 0:01:15.8]} 27. Rge2 {[%clk 0:01:28.4]} 27... Rxe4 {[%clk
0:00:53.9]} 28. Rxe4 {[%clk 0:01:29.3]} 28... Qh4 {[%clk 0:00:53.1]} 29. Bd2
{[%clk 0:01:17.1]} 29... Qg5 {[%clk 0:00:43]} 30. Be1 {[%clk 0:01:09.7]} 30...
Bg7 {[%clk 0:00:42]} 31. Bf2 {[%clk 0:01:08.2]} 31... Be5 {[%clk 0:00:40.2]} 32.
Re1 {[%clk 0:01:07.8]} 32... Qf5 {[%clk 0:00:32.9]} 33. Rg1 {[%clk 0:00:57.8]}
33... Rg8 {[%clk 0:00:25.9]} 34. Rxg8+ {[%clk 0:00:57.5]} 34... Kxg8 {[%clk
0:00:26.8]} 35. Qa8+ {[%clk 0:00:56.7]} 35... Kg7 {[%clk 0:00:26.5]} 36. Qf3
{[%clk 0:00:45.5]} 36... Kg6 {[%clk 0:00:25.8]} 37. Kg2 {[%clk 0:00:44.2]} 37...
Qg5+ {[%clk 0:00:25.6]} 38. Kf1 {[%clk 0:00:43]} 38... Qh5 {[%clk 0:00:25.5]}
39. Kg2 {[%clk 0:00:41.9]} 39... Kg5 {[%clk 0:00:18.7]} 40. Qxh5+ {[%clk
0:00:37.5]} 40... Kxh5 {[%clk 0:00:18.8]} 41. Kf3 {[%clk 0:00:38.1]} 41... Kg5
{[%clk 0:00:19.1]} 42. b5 {[%clk 0:00:36]} 42... Kf5 {[%clk 0:00:17.7]} 43. a4
{[%clk 0:00:35.7]} 43... Bf6 {[%clk 0:00:16.4]} 44. h3 {[%clk 0:00:35.1]} 44...
h5 {[%clk 0:00:09.9]} 45. Be1 {[%clk 0:00:33.9]} 45... Be7 {[%clk 0:00:08.9]}
46. Bd2 {[%clk 0:00:32.4]} 46... Bg5 {[%clk 0:00:08.3]} 47. a5 {[%clk
0:00:32.8]} 47... Ke5 {[%clk 0:00:05.1]} 48. a6 {[%clk 0:00:31.1]} 48... d5
{[%clk 0:00:04.3]} 49. c5 {[%clk 0:00:28.1]} 49... Bd8 {[%clk 0:00:01.6]} 50.
Bxf4+ {[%clk 0:00:25.4]} 50... Ke6 {[%clk 0:00:01.9]} 51. c6 {[%clk 0:00:24.6]}
51... Be7 {[%clk 0:00:02.3]} 52. Bb8 {[%clk 0:00:23.9]} 52... Bd6 {[%clk
0:00:01.9]} 53. c7 {[%clk 0:00:17.9]} 1-0

[Event "*** Titled Tuesday Blitz"]
[Site "Chess.com"]
[Date "2021.03.30"]
[Round "7"]
[White "DeTimmerman"]
[Black "Bigfish1995"]
[Result "1-0"]
[WhiteElo "2754"]
[BlackElo "2994"]
[TimeControl "180+1"]
[EndTime "11:19:02 PDT"]
[Termination "DeTimmerman won on time"]

1. b4 {[%clk 0:03:00.9]} 1... Na6 {[%clk 0:02:56.2]} 2. b5 {[%clk 0:02:57.3]}
2... Nc5 {[%clk 0:02:56.3]} 3. a4 {[%clk 0:02:56.3]} 3... Ne4 {[%clk 0:02:55.9]}
4. Bb2 {[%clk 0:02:52.4]} 4... Nef6 {[%clk 0:02:55.9]} 5. Nf3 {[%clk 0:02:52.2]}
5... Nh6 {[%clk 0:02:55.3]} 6. e3 {[%clk 0:02:52.7]} 6... Nfg8 {[%clk
0:02:55.3]} 7. Be2 {[%clk 0:02:52.6]} 7... f6 {[%clk 0:02:54.9]} 8. O-O {[%clk
0:02:52.2]} 8... Nf7 {[%clk 0:02:55.5]} 9. d4 {[%clk 0:02:53]} 9... g6 {[%clk
0:02:54.6]} 10. c4 {[%clk 0:02:53.6]} 10... Bg7 {[%clk 0:02:54.6]} 11. Nc3
{[%clk 0:02:54.4]} 11... Ngh6 {[%clk 0:02:54.8]} 12. Nd2 {[%clk 0:02:54.3]}
12... O-O {[%clk 0:02:55.7]} 13. Qc2 {[%clk 0:02:52.1]} 13... e5 {[%clk
0:02:54.1]} 14. Rad1 {[%clk 0:02:33.6]} 14... d6 {[%clk 0:02:47.6]} 15. Nd5
{[%clk 0:02:30.1]} 15... Be6 {[%clk 0:02:39.1]} 16. dxe5 {[%clk 0:02:29.6]}
16... fxe5 {[%clk 0:02:30.9]} 17. Ne4 {[%clk 0:02:29]} 17... b6 {[%clk
0:02:27.7]} 18. Nb4 {[%clk 0:02:28.2]} 18... Qe8 {[%clk 0:02:22.7]} 19. Nc3
{[%clk 0:02:24.9]} 19... Nf5 {[%clk 0:02:19.1]} 20. Ncd5 {[%clk 0:02:24.8]}
20... Rc8 {[%clk 0:02:17.5]} 21. Nc6 {[%clk 0:02:23.1]} 21... a5 {[%clk
0:02:14.8]} 22. e4 {[%clk 0:02:23.2]} 22... Bxd5 {[%clk 0:02:10.7]} 23. cxd5
{[%clk 0:02:22.9]} 23... Ne7 {[%clk 0:02:04.6]} 24. Bg4 {[%clk 0:02:22.4]} 24...
Nxc6 {[%clk 0:02:02.4]} 25. Qxc6 {[%clk 0:02:18.8]} 25... Qxc6 {[%clk
0:02:02.4]} 26. bxc6 {[%clk 0:02:13.2]} 26... Rb8 {[%clk 0:02:01.1]} 27. Be2
{[%clk 0:02:10.5]} 27... Bf6 {[%clk 0:01:59.8]} 28. f4 {[%clk 0:02:08.4]} 28...
Kg7 {[%clk 0:01:59.3]} 29. g3 {[%clk 0:02:00.6]} 29... exf4 {[%clk 0:01:58.6]}
30. Bxf6+ {[%clk 0:02:01.5]} 30... Kxf6 {[%clk 0:01:58.3]} 31. gxf4 {[%clk
0:02:01]} 31... Kg7 {[%clk 0:01:57.8]} 32. Kf2 {[%clk 0:01:57.2]} 32... g5
{[%clk 0:01:50]} 33. Rg1 {[%clk 0:01:53.5]} 33... Kh8 {[%clk 0:01:50]} 34. Bh5
{[%clk 0:01:47]} 34... Ne5 {[%clk 0:01:37.4]} 35. f5 {[%clk 0:01:26.7]} 35...
Rg8 {[%clk 0:01:37]} 36. Ke3 {[%clk 0:01:21.5]} 36... b5 {[%clk 0:01:20.7]} 37.
Rb1 {[%clk 0:01:21.8]} 37... b4 {[%clk 0:01:18.8]} 38. Be2 {[%clk 0:01:07.5]}
38... b3 {[%clk 0:00:57]} 39. Bb5 {[%clk 0:01:05.4]} 39... Rxb5 {[%clk
0:00:56.6]} 40. axb5 {[%clk 0:01:04.8]} 40... a4 {[%clk 0:00:57.5]} 41. f6
{[%clk 0:01:01]} 41... b2 {[%clk 0:00:47]} 42. f7 {[%clk 0:00:50.9]} 42... Rf8
{[%clk 0:00:43.8]} 43. Rxg5 {[%clk 0:00:50.5]} 43... a3 {[%clk 0:00:40.7]} 44.
Rbg1 {[%clk 0:00:47.8]} 44... Nxf7 {[%clk 0:00:30.2]} 45. R5g2 {[%clk
0:00:47.8]} 45... Ne5 {[%clk 0:00:29.9]} 46. Kd4 {[%clk 0:00:41.1]} 46... Nf3+
{[%clk 0:00:29.2]} 47. Kc3 {[%clk 0:00:39.6]} 47... Nxg1 {[%clk 0:00:28.7]} 48.
Rxg1 {[%clk 0:00:40.5]} 48... Rb8 {[%clk 0:00:24]} 49. Kb3 {[%clk 0:00:39]}
49... Rxb5+ {[%clk 0:00:23.5]} 50. Ka2 {[%clk 0:00:39.8]} 50... Rb4 {[%clk
0:00:17.9]} 51. Rb1 {[%clk 0:00:37.5]} 51... Rxe4 {[%clk 0:00:12.4]} 52. Kxa3
{[%clk 0:00:38]} 52... Re2 {[%clk 0:00:12.7]} 53. Ka2 {[%clk 0:00:32.4]} 53...
Kg7 {[%clk 0:00:11.7]} 54. Rg1+ {[%clk 0:00:28.3]} 54... Kf6 {[%clk 0:00:11.1]}
55. Rg8 {[%clk 0:00:27]} 55... Re7 {[%clk 0:00:02.7]} 56. Rd8 {[%clk 0:00:25.3]}
56... h5 {[%clk 0:00:01.5]} 57. Kxb2 {[%clk 0:00:20.4]} 1-0

[Event "*** Titled Tuesday Blitz"]
[Site "Chess.com"]
[Date "2021.03.30"]
[Round "7"]
[White "Larciano"]
[Black "dpopadic"]
[Result "1-0"]
[WhiteElo "1963"]
[BlackElo "2291"]
[TimeControl "180+1"]
[EndTime "11:19:02 PDT"]
[Termination "Larciano won on time"]

1. e4 {[%clk 0:03:00.9]} 1... c5 {[%clk 0:02:58.8]} 2. c3 {[%clk 0:03:00.7]}
2... g6 {[%clk 0:02:57.6]} 3. d4 {[%clk 0:03:00.5]} 3... cxd4 {[%clk 0:02:57.5]}
4. cxd4 {[%clk 0:02:57.8]} 4... d6 {[%clk 0:02:57.6]} 5. Nc3 {[%clk 0:02:56.6]}
5... Bg7 {[%clk 0:02:57.8]} 6. h3 {[%clk 0:02:56.4]} 6... Nc6 {[%clk 0:02:57.8]}
7. Nf3 {[%clk 0:02:56.5]} 7... Nf6 {[%clk 0:02:57.2]} 8. Bc4 {[%clk 0:02:53.7]}
8... O-O {[%clk 0:02:56.6]} 9. O-O {[%clk 0:02:53.4]} 9... a6 {[%clk 0:02:52.6]}
10. a3 {[%clk 0:02:50.9]} 10... b5 {[%clk 0:02:52]} 11. Ba2 {[%clk 0:02:50.9]}
11... Bb7 {[%clk 0:02:52.4]} 12. Re1 {[%clk 0:02:50.9]} 12... e5 {[%clk
0:02:43.3]} 13. dxe5 {[%clk 0:02:40.3]} 13... Nxe5 {[%clk 0:02:39.1]} 14. Bg5
{[%clk 0:02:37.9]} 14... h6 {[%clk 0:02:16.7]} 15. Bh4 {[%clk 0:02:32.9]} 15...
g5 {[%clk 0:02:09.5]} 16. Bg3 {[%clk 0:02:32.7]} 16... Qe7 {[%clk 0:02:08.7]}
17. Qe2 {[%clk 0:02:25.6]} 17... Rfd8 {[%clk 0:02:02.1]} 18. Nd4 {[%clk
0:02:25.4]} 18... Ne8 {[%clk 0:01:46.9]} 19. Nf5 {[%clk 0:02:20.1]} 19... Qf6
{[%clk 0:01:46.5]} 20. Rad1 {[%clk 0:02:19.9]} 20... Bf8 {[%clk 0:01:44.5]} 21.
Bd5 {[%clk 0:02:03.9]} 21... Bxd5 {[%clk 0:01:39.4]} 22. Nxd5 {[%clk 0:02:03.1]}
22... Qe6 {[%clk 0:01:35.3]} 23. h4 {[%clk 0:01:49.2]} 23... gxh4 {[%clk
0:00:57.9]} 24. Bxh4 {[%clk 0:01:47.5]} 24... Rd7 {[%clk 0:00:54.5]} 25. Nb6
{[%clk 0:01:45.7]} 25... Rda7 {[%clk 0:00:50.6]} 26. Nxa8 {[%clk 0:01:45.3]}
26... Rxa8 {[%clk 0:00:50.8]} 27. Rd2 {[%clk 0:01:21.9]} 27... Ng6 {[%clk
0:00:47]} 28. Bg3 {[%clk 0:01:20.9]} 28... Rc8 {[%clk 0:00:45.9]} 29. Red1
{[%clk 0:01:20.6]} 29... Rc6 {[%clk 0:00:44.6]} 30. Nd4 {[%clk 0:01:20.2]} 30...
Qc8 {[%clk 0:00:43.5]} 31. Nxc6 {[%clk 0:01:17.7]} 31... Qxc6 {[%clk 0:00:43.9]}
32. Rc2 {[%clk 0:01:12.9]} 32... Qb7 {[%clk 0:00:42.3]} 33. e5 {[%clk
0:01:06.9]} 33... dxe5 {[%clk 0:00:39.4]} 34. Bxe5 {[%clk 0:01:06.3]} 34... Qe7
{[%clk 0:00:31.2]} 35. Bc3 {[%clk 0:01:01.3]} 35... Qxe2 {[%clk 0:00:23.9]} 36.
Rxe2 {[%clk 0:01:00.8]} 36... Nc7 {[%clk 0:00:23.9]} 37. Rd8 {[%clk 0:00:58.2]}
37... Ne6 {[%clk 0:00:23.1]} 38. Ra8 {[%clk 0:00:55.3]} 38... Ngf4 {[%clk
0:00:21.9]} 39. Rd2 {[%clk 0:00:52.8]} 39... Kh7 {[%clk 0:00:21]} 40. Rxa6
{[%clk 0:00:49.6]} 40... Bc5 {[%clk 0:00:20.9]} 41. Ra8 {[%clk 0:00:45.5]} 41...
Kg6 {[%clk 0:00:20.1]} 42. g3 {[%clk 0:00:43.6]} 42... Nh3+ {[%clk 0:00:18.7]}
43. Kg2 {[%clk 0:00:43.5]} 43... Nhg5 {[%clk 0:00:17.9]} 44. b4 {[%clk
0:00:40.1]} 44... Bb6 {[%clk 0:00:14.8]} 45. Be5 {[%clk 0:00:38.8]} 45... Kf5
{[%clk 0:00:13.1]} 46. Ba1 {[%clk 0:00:33.2]} 46... Ne4 {[%clk 0:00:12.4]} 47.
Re2 {[%clk 0:00:30.4]} 47... N6g5 {[%clk 0:00:08.3]} 48. Rb8 {[%clk 0:00:28.8]}
48... Bc7 {[%clk 0:00:06.9]} 49. Rxb5+ {[%clk 0:00:27.9]} 49... Kg6 {[%clk
0:00:07.2]} 50. f3 {[%clk 0:00:25.5]} 50... Nd6 {[%clk 0:00:06.1]} 51. Rc5
{[%clk 0:00:24.4]} 51... Bb8 {[%clk 0:00:05]} 52. Rc6 {[%clk 0:00:23.8]} 52...
Kh7 {[%clk 0:00:03.7]} 53. a4 {[%clk 0:00:22.8]} 53... Nf5 {[%clk 0:00:03.5]}
54. f4 {[%clk 0:00:20.5]} 54... Ne6 {[%clk 0:00:02.2]} 55. Rexe6 {[%clk
0:00:18.6]} 55... fxe6 {[%clk 0:00:02]} 56. Rxe6 {[%clk 0:00:18.8]} 1-0

[Event "*** Titled Tuesday Blitz"]
[Site "Chess.com"]
[Date "2021.03.30"]
[Round "7"]
[White "KuzubovYuriy"]
[Black "LionTheLeon_06"]
[Result "1-0"]
[WhiteElo "2860"]
[BlackElo "2691"]
[TimeControl "180+1"]
[EndTime "11:19:03 PDT"]
[Termination "KuzubovYuriy won on time"]

1. d4 {[%clk 0:03:00.9]} 1... Nf6 {[%clk 0:02:59.3]} 2. Nf3 {[%clk 0:03:00.8]}
2... e6 {[%clk 0:02:57.7]} 3. c4 {[%clk 0:03:00.5]} 3... b6 {[%clk 0:02:57.2]}
4. g3 {[%clk 0:03:00.7]} 4... Bb7 {[%clk 0:02:56.8]} 5. Bg2 {[%clk 0:03:01]}
5... Be7 {[%clk 0:02:57.2]} 6. Nc3 {[%clk 0:03:01.1]} 6... Ne4 {[%clk
0:02:53.2]} 7. Bd2 {[%clk 0:03:00.6]} 7... d6 {[%clk 0:02:43.8]} 8. d5 {[%clk
0:02:55.4]} 8... Nxd2 {[%clk 0:02:41.5]} 9. Qxd2 {[%clk 0:02:56.3]} 9... e5
{[%clk 0:02:41.3]} 10. e4 {[%clk 0:02:44.3]} 10... Nd7 {[%clk 0:02:40.4]} 11. h4
{[%clk 0:02:44.3]} 11... h5 {[%clk 0:02:34.1]} 12. Bh3 {[%clk 0:02:41.1]} 12...
g6 {[%clk 0:02:27]} 13. Qc2 {[%clk 0:02:30.9]} 13... c5 {[%clk 0:01:58.6]} 14.
O-O-O {[%clk 0:02:21.9]} 14... a6 {[%clk 0:01:50.1]} 15. Kb1 {[%clk 0:02:18.1]}
15... Bf6 {[%clk 0:01:41.4]} 16. g4 {[%clk 0:02:06.3]} 16... hxg4 {[%clk
0:00:49.6]} 17. Bxg4 {[%clk 0:02:07.2]} 17... Be7 {[%clk 0:00:43.1]} 18. h5
{[%clk 0:02:04.7]} 18... gxh5 {[%clk 0:00:40.3]} 19. Rxh5 {[%clk 0:01:49.9]}
19... Rxh5 {[%clk 0:00:39.1]} 20. Bxh5 {[%clk 0:01:50.8]} 20... Nf6 {[%clk
0:00:39.7]} 21. Rh1 {[%clk 0:01:51.4]} 21... Qd7 {[%clk 0:00:32.7]} 22. Qe2
{[%clk 0:01:33.9]} 22... Nxh5 {[%clk 0:00:31]} 23. Rxh5 {[%clk 0:01:33.5]} 23...
O-O-O {[%clk 0:00:25.4]} 24. Rf5 {[%clk 0:01:27.2]} 24... Rf8 {[%clk 0:00:18.9]}
25. Nd1 {[%clk 0:01:27]} 25... Kc7 {[%clk 0:00:15.8]} 26. Ne3 {[%clk 0:01:26.9]}
26... Bc8 {[%clk 0:00:16]} 27. Rh5 {[%clk 0:01:23.2]} 27... Qe8 {[%clk 0:00:11]}
28. Nd2 {[%clk 0:01:22.2]} 28... Rh8 {[%clk 0:00:09.9]} 29. Ndf1 {[%clk
0:01:19.3]} 29... Qg8 {[%clk 0:00:07.9]} 30. Ng3 {[%clk 0:01:14.8]} 30... Rxh5
{[%clk 0:00:04.3]} 31. Qxh5 {[%clk 0:01:15.7]} 31... Bg5 {[%clk 0:00:03.6]} 32.
Nef5 {[%clk 0:01:14]} 32... Qg6 {[%clk 0:00:02.8]} 33. Qh8 {[%clk 0:01:03.5]}
33... Bf4 {[%clk 0:00:03.1]} 34. a3 {[%clk 0:00:53]} 34... Bxg3 {[%clk
0:00:02.5]} 35. Nxg3 {[%clk 0:00:49.7]} 35... Qg5 {[%clk 0:00:02]} 36. Qf8
{[%clk 0:00:45.8]} 36... Bd7 {[%clk 0:00:01.8]} 37. Qxf7 {[%clk 0:00:43.8]}
37... Qd2 {[%clk 0:00:02]} 38. Qf3 {[%clk 0:00:38.5]} 38... Qe1+ {[%clk
0:00:01.3]} 39. Ka2 {[%clk 0:00:38.1]} 39... Qd2 {[%clk 0:00:02.2]} 40. Qe2
{[%clk 0:00:36.7]} 40... Qc1 {[%clk 0:00:02.4]} 41. Qd3 {[%clk 0:00:28.5]} 41...
b5 {[%clk 0:00:02.7]} 42. Ne2 {[%clk 0:00:25.3]} 42... bxc4 {[%clk 0:00:01.9]}
43. Nxc1 {[%clk 0:00:24.7]} 43... cxd3 {[%clk 0:00:01.9]} 44. Nxd3 {[%clk
0:00:25.3]} 44... Bb5 {[%clk 0:00:02.6]} 45. Ne1 {[%clk 0:00:23.2]} 45... Bc4+
{[%clk 0:00:02.8]} 46. Kb1 {[%clk 0:00:22.7]} 46... Kb6 {[%clk 0:00:02.4]} 47.
Kc2 {[%clk 0:00:22.6]} 47... Kb5 {[%clk 0:00:02.8]} 48. b3 {[%clk 0:00:22.1]}
48... Be2 {[%clk 0:00:02.9]} 49. Kd2 {[%clk 0:00:20.8]} 49... Bg4 {[%clk
0:00:02.6]} 50. f3 {[%clk 0:00:20.4]} 50... Bh5 {[%clk 0:00:02.3]} 51. Ke3
{[%clk 0:00:19.7]} 51... a5 {[%clk 0:00:02.7]} 52. Nd3 {[%clk 0:00:15.3]} 52...
a4 {[%clk 0:00:02.6]} 53. b4 {[%clk 0:00:11.3]} 1-0